[Event "Titled Tuesday Blitz January 18 2022"]
[White "Barria Zuniga, Daniel"]
[Black "Ozates, Tuna"]
[WhiteFideId "3400816"]
[BlackFideId "6354521"]
[WhiteElo "2414"]
[BlackElo "1872"]
[Result "1-0"]
[Round "08"]
[TimeControl "180+1"]
[Date "2022.01.18"]
[WhiteClock "0:00:14"]
[BlackClock "0:00:02"]

1. d4 {[%clk 0:03:00]}  Nf6 {[%clk 0:02:59]} 2. c4 {[%clk 0:03:00]}  c5 {[%clk 0:03:00]} 3. d5 {[%clk 0:03:00]}  g6 {[%clk 0:02:59]} 4. Nc3 {[%clk 0:03:00]}  Bg7 {[%clk 0:02:59]} 5. e4 {[%clk 0:03:01]}  d6 {[%clk 0:02:57]} 6. h3 {[%clk 0:03:00]}  O-O {[%clk 0:02:57]} 7. Nf3 {[%clk 0:03:00]}  e5 {[%clk 0:02:55]} 8. g4 {[%clk 0:02:39]}  a6 {[%clk 0:02:46]} 9. Bd3 {[%clk 0:02:36]}  b5 {[%clk 0:02:43]} 10. b3 {[%clk 0:02:30]}  h6 {[%clk 0:02:37]} 11. Bd2 {[%clk 0:02:29]}  Kh7 {[%clk 0:02:32]} 12. Ne2 {[%clk 0:02:28]}  Nbd7 {[%clk 0:02:09]} 13. Ng3 {[%clk 0:02:26]}  Nb6 {[%clk 0:02:04]} 14. a4 {[%clk 0:02:11]}  Bd7 {[%clk 0:01:56]} 15. Kf1 {[%clk 0:01:54]}  bxa4 {[%clk 0:01:49]} 16. bxa4 {[%clk 0:01:53]}  Qe8 {[%clk 0:01:43]} 17. a5 {[%clk 0:01:52]}  Na4 {[%clk 0:01:39]} 18. Qc2 {[%clk 0:01:45]}  Rb8 {[%clk 0:01:37]} 19. Ra2 {[%clk 0:01:43]}  Ng8 {[%clk 0:01:11]} 20. Kg2 {[%clk 0:01:42]}  Ne7 {[%clk 0:00:43]} 21. Rb1 {[%clk 0:01:24]}  Rxb1 {[%clk 0:00:41]} 22. Qxb1 {[%clk 0:01:25]}  Qb8 {[%clk 0:00:40]} 23. Qc2 {[%clk 0:01:21]}  Qe8 {[%clk 0:00:21]} 24. Qb3 {[%clk 0:01:17]}  Qb8 {[%clk 0:00:20]} 25. Bc2 {[%clk 0:01:14]}  f5 {[%clk 0:00:06]} 26. Qxb8 {[%clk 0:01:09]}  Rxb8 {[%clk 0:00:06]} 27. Bxa4 {[%clk 0:01:07]}  Bxa4 {[%clk 0:00:06]} 28. Rxa4 {[%clk 0:01:07]}  f4 {[%clk 0:00:05]} 29. Ne2 {[%clk 0:01:04]}  Bf6 {[%clk 0:00:05]} 30. Ra2 {[%clk 0:01:01]}  Nc8 {[%clk 0:00:02]} 31. Nc3 {[%clk 0:00:57]}  Rb4 {[%clk 0:00:03]} 32. Ra4 {[%clk 0:00:56]}  Rb2 {[%clk 0:00:02]} 33. Kf1 {[%clk 0:00:55]}  Bd8 {[%clk 0:00:02]} 34. Ke2 {[%clk 0:00:54]}  Ne7 {[%clk 0:00:01]} 35. Kd3 {[%clk 0:00:54]}  Rb4 {[%clk 0:00:02]} 36. Ra2 {[%clk 0:00:44]}  Rb7 {[%clk 0:00:02]} 37. Ne1 {[%clk 0:00:39]}  Kg7 {[%clk 0:00:02]} 38. Nc2 {[%clk 0:00:39]}  Kf6 {[%clk 0:00:02]} 39. f3 {[%clk 0:00:38]}  Kg5 {[%clk 0:00:03]} 40. Be1 {[%clk 0:00:38]}  h5 {[%clk 0:00:03]} 41. h4+ {[%clk 0:00:38]}  Kf6 {[%clk 0:00:03]} 42. g5+ {[%clk 0:00:39]}  Kf7 {[%clk 0:00:03]} 43. Bd2 {[%clk 0:00:36]}  Ke8 {[%clk 0:00:04]} 44. Ra3 {[%clk 0:00:31]}  Kd7 {[%clk 0:00:03]} 45. Ra1 {[%clk 0:00:30]}  Kc8 {[%clk 0:00:02]} 46. Ne1 {[%clk 0:00:24]}  Kb8 {[%clk 0:00:03]} 47. Kc2 {[%clk 0:00:23]}  Nc8 {[%clk 0:00:03]} 48. Nd3 {[%clk 0:00:23]}  Na7 {[%clk 0:00:03]} 49. Na4 {[%clk 0:00:22]}  Nc8 {[%clk 0:00:03]} 50. Rb1 {[%clk 0:00:21]}  Ka7 {[%clk 0:00:03]} 51. Rxb7+ {[%clk 0:00:20]}  Kxb7 {[%clk 0:00:04]} 52. Naxc5+ {[%clk 0:00:21]}  dxc5 {[%clk 0:00:04]} 53. Nxc5+ {[%clk 0:00:21]}  Ka7 {[%clk 0:00:05]} 54. Nd3 {[%clk 0:00:22]}  Bc7 {[%clk 0:00:04]} 55. c5 {[%clk 0:00:21]}  Kb7 {[%clk 0:00:04]} 56. Kb3 {[%clk 0:00:21]}  Na7 {[%clk 0:00:03]} 57. Bc3 {[%clk 0:00:19]}  Nb5 {[%clk 0:00:02]} 58. Bxe5 {[%clk 0:00:19]}  Bxa5 {[%clk 0:00:02]} 59. Nxf4 {[%clk 0:00:18]}  Be1 {[%clk 0:00:01]} 60. Nxg6 {[%clk 0:00:17]}  Bf2 {[%clk 0:00:01]} 61. c6+ {[%clk 0:00:16]}  Kb6 {[%clk 0:00:02]} 62. f4 {[%clk 0:00:17]}  a5 {[%clk 0:00:02]} 63. f5 {[%clk 0:00:16]}  Bc5 {[%clk 0:00:02]} 64. f6 {[%clk 0:00:15]}  Nd6 {[%clk 0:00:01]} 65. Bxd6 {[%clk 0:00:14]}  Bxd6 {[%clk 0:00:02]} 66. Ka4 {[%clk 0:00:14]} 1-0


[Site "https://www.chess.com"]

[Event "Titled Tuesday Blitz January 18 2022"]
[White "Bortnyk, Olexandr"]
[Black "Deac, Bogdan-Daniel"]
[WhiteFideId "14120828"]
[BlackFideId "1226380"]
[WhiteElo "2723"]
[BlackElo "2646"]
[Result "0-1"]
[Round "08"]
[TimeControl "180+1"]
[Date "2022.01.18"]
[WhiteClock "0:00:01"]
[BlackClock "0:01:30"]

1. e4 {[%clk 0:03:00]}  e5 {[%clk 0:03:00]} 2. Nf3 {[%clk 0:02:59]}  Nf6 {[%clk 0:02:59]} 3. Nxe5 {[%clk 0:02:57]}  d6 {[%clk 0:02:59]} 4. Nf3 {[%clk 0:02:58]}  Nxe4 {[%clk 0:02:59]} 5. Bd3 {[%clk 0:02:59]}  Nf6 {[%clk 0:02:54]} 6. O-O {[%clk 0:02:59]}  Be7 {[%clk 0:02:54]} 7. c3 {[%clk 0:02:59]}  Bg4 {[%clk 0:02:51]} 8. Bc2 {[%clk 0:02:27]}  O-O {[%clk 0:02:49]} 9. d4 {[%clk 0:02:27]}  d5 {[%clk 0:02:48]} 10. Re1 {[%clk 0:02:22]}  Nbd7 {[%clk 0:02:44]} 11. Bf4 {[%clk 0:02:13]}  Re8 {[%clk 0:02:38]} 12. Nbd2 {[%clk 0:02:12]}  Nf8 {[%clk 0:02:38]} 13. h3 {[%clk 0:02:08]}  Bh5 {[%clk 0:02:37]} 14. Nf1 {[%clk 0:02:02]}  Bd6 {[%clk 0:02:29]} 15. Rxe8 {[%clk 0:02:01]}  Nxe8 {[%clk 0:02:29]} 16. Bxd6 {[%clk 0:01:52]}  Nxd6 {[%clk 0:02:30]} 17. Ng3 {[%clk 0:01:52]}  Bg6 {[%clk 0:02:30]} 18. Bxg6 {[%clk 0:01:33]}  Nxg6 {[%clk 0:02:28]} 19. Qb3 {[%clk 0:01:34]}  c6 {[%clk 0:02:24]} 20. Re1 {[%clk 0:01:34]}  Qc7 {[%clk 0:02:23]} 21. Re3 {[%clk 0:00:50]}  Re8 {[%clk 0:02:19]} 22. Rxe8+ {[%clk 0:00:48]}  Nxe8 {[%clk 0:02:20]} 23. Nf5 {[%clk 0:00:48]}  Ne7 {[%clk 0:02:14]} 24. Ne3 {[%clk 0:00:43]}  Nd6 {[%clk 0:02:12]} 25. Ne5 {[%clk 0:00:39]}  Nef5 {[%clk 0:02:02]} 26. Nxf5 {[%clk 0:00:31]}  Nxf5 {[%clk 0:02:02]} 27. Qa3 {[%clk 0:00:27]}  a6 {[%clk 0:02:01]} 28. Qc5 {[%clk 0:00:27]}  g6 {[%clk 0:01:53]} 29. Ng4 {[%clk 0:00:20]}  Kg7 {[%clk 0:01:50]} 30. Ne5 {[%clk 0:00:12]}  Nd6 {[%clk 0:01:47]} 31. Qa7 {[%clk 0:00:09]}  f6 {[%clk 0:01:40]} 32. Nd3 {[%clk 0:00:09]}  Qe7 {[%clk 0:01:39]} 33. Kf1 {[%clk 0:00:08]}  Nc4 {[%clk 0:01:35]} 34. f3 {[%clk 0:00:02]}  Qe3 {[%clk 0:01:30]} 35. Qxb7+ {[%clk 0:00:01]}  Kh6 {[%clk 0:01:30]} 0-1


[Site "https://www.chess.com"]

[Event "Titled Tuesday Blitz January 18 2022"]
[White "Brodowski, Piotr"]
[Black "Nilsen, Tobias Lang"]
[WhiteFideId "1124480"]
[BlackFideId "1521624"]
[WhiteElo "2422"]
[BlackElo "2013"]
[Result "1-0"]
[Round "08"]
[TimeControl "180+1"]
[Date "2022.01.18"]
[WhiteClock "0:00:06"]
[BlackClock "0:00:19"]

1. c4 {[%clk 0:03:00]}  c5 {[%clk 0:02:54]} 2. Nc3 {[%clk 0:02:58]}  g6 {[%clk 0:02:55]} 3. h4 {[%clk 0:02:57]}  h6 {[%clk 0:02:54]} 4. d3 {[%clk 0:02:55]}  Bg7 {[%clk 0:02:53]} 5. g3 {[%clk 0:02:56]}  Nc6 {[%clk 0:02:53]} 6. Bg2 {[%clk 0:02:55]}  d6 {[%clk 0:02:53]} 7. Nf3 {[%clk 0:02:55]}  e6 {[%clk 0:02:54]} 8. O-O {[%clk 0:02:53]}  Nge7 {[%clk 0:02:54]} 9. Bd2 {[%clk 0:02:41]}  O-O {[%clk 0:02:50]} 10. a3 {[%clk 0:02:41]}  b6 {[%clk 0:02:50]} 11. h5 {[%clk 0:02:21]}  g5 {[%clk 0:02:48]} 12. Nh2 {[%clk 0:02:20]}  Bb7 {[%clk 0:02:46]} 13. Rb1 {[%clk 0:02:19]}  Qd7 {[%clk 0:02:46]} 14. b4 {[%clk 0:02:18]}  Rac8 {[%clk 0:02:43]} 15. bxc5 {[%clk 0:02:08]}  dxc5 {[%clk 0:02:42]} 16. Nf3 {[%clk 0:02:00]}  Nf5 {[%clk 0:02:36]} 17. Qa4 {[%clk 0:01:32]}  Rfd8 {[%clk 0:02:34]} 18. Rfd1 {[%clk 0:01:23]}  Nfd4 {[%clk 0:02:26]} 19. Nxd4 {[%clk 0:01:20]}  Bxd4 {[%clk 0:02:20]} 20. Nb5 {[%clk 0:00:55]}  Bg7 {[%clk 0:02:16]} 21. Nxa7 {[%clk 0:00:48]}  Nxa7 {[%clk 0:02:11]} 22. Qxa7 {[%clk 0:00:47]}  Bxg2 {[%clk 0:02:02]} 23. Qxd7 {[%clk 0:00:45]}  Rxd7 {[%clk 0:02:02]} 24. Kxg2 {[%clk 0:00:45]}  Ra7 {[%clk 0:01:58]} 25. Rb3 {[%clk 0:00:37]}  Ra6 {[%clk 0:01:58]} 26. Rdb1 {[%clk 0:00:35]}  Bf6 {[%clk 0:01:56]} 27. Rxb6 {[%clk 0:00:34]}  Rxa3 {[%clk 0:01:56]} 28. Be3 {[%clk 0:00:34]}  Ra2 {[%clk 0:01:55]} 29. Kf3 {[%clk 0:00:33]}  Kg7 {[%clk 0:01:50]} 30. g4 {[%clk 0:00:33]}  Be5 {[%clk 0:01:43]} 31. Rb7 {[%clk 0:00:29]}  Kf6 {[%clk 0:01:35]} 32. Rd7 {[%clk 0:00:24]}  Rb2 {[%clk 0:01:21]} 33. Rxb2 {[%clk 0:00:22]}  Bxb2 {[%clk 0:01:21]} 34. Rb7 {[%clk 0:00:22]}  Be5 {[%clk 0:01:20]} 35. Rb5 {[%clk 0:00:21]}  Bd6 {[%clk 0:01:20]} 36. Ke4 {[%clk 0:00:20]}  Ke7 {[%clk 0:01:18]} 37. Rb7+ {[%clk 0:00:20]}  Kf6 {[%clk 0:01:18]} 38. Bd2 {[%clk 0:00:20]}  Be5 {[%clk 0:01:18]} 39. Bc1 {[%clk 0:00:18]}  Bd4 {[%clk 0:01:16]} 40. Bb2 {[%clk 0:00:17]}  Bxb2 {[%clk 0:01:14]} 41. Rxb2 {[%clk 0:00:17]}  Rc7 {[%clk 0:01:10]} 42. Rb8 {[%clk 0:00:15]}  Kg7 {[%clk 0:01:07]} 43. e3 {[%clk 0:00:15]}  Kf6 {[%clk 0:01:08]} 44. Rh8 {[%clk 0:00:15]}  Kg7 {[%clk 0:01:07]} 45. Rd8 {[%clk 0:00:15]}  Kf6 {[%clk 0:01:08]} 46. f4 {[%clk 0:00:15]}  gxf4 {[%clk 0:01:07]} 47. Kxf4 {[%clk 0:00:16]}  Ra7 {[%clk 0:01:03]} 48. Rc8 {[%clk 0:00:16]}  Ra3 {[%clk 0:01:02]} 49. Ke4 {[%clk 0:00:16]}  Ra5 {[%clk 0:01:02]} 50. Rc7 {[%clk 0:00:16]}  Kg7 {[%clk 0:01:00]} 51. d4 {[%clk 0:00:16]}  cxd4 {[%clk 0:01:00]} 52. exd4 {[%clk 0:00:17]}  Rg5 {[%clk 0:01:00]} 53. Kf4 {[%clk 0:00:17]}  Ra5 {[%clk 0:01:00]} 54. c5 {[%clk 0:00:17]}  Kf6 {[%clk 0:01:00]} 55. Rd7 {[%clk 0:00:17]}  Ra1 {[%clk 0:01:01]} 56. c6 {[%clk 0:00:17]}  Rc1 {[%clk 0:01:01]} 57. c7 {[%clk 0:00:17]}  e5+ {[%clk 0:00:59]} 58. dxe5+ {[%clk 0:00:16]}  Ke6 {[%clk 0:01:00]} 59. Rd6+ {[%clk 0:00:17]}  Ke7 {[%clk 0:01:00]} 60. Rxh6 {[%clk 0:00:17]}  Rxc7 {[%clk 0:01:00]} 61. Rd6 {[%clk 0:00:18]}  Kf8 {[%clk 0:00:59]} 62. h6 {[%clk 0:00:18]}  Kg8 {[%clk 0:00:59]} 63. Kg5 {[%clk 0:00:18]}  Kh7 {[%clk 0:00:59]} 64. Kh5 {[%clk 0:00:17]}  Rc5 {[%clk 0:00:58]} 65. Rd7 {[%clk 0:00:09]}  Rxe5+ {[%clk 0:00:58]} 66. g5 {[%clk 0:00:10]}  Rf5 {[%clk 0:00:58]} 67. Re7 {[%clk 0:00:08]}  Kg8 {[%clk 0:00:55]} 68. Kg4 {[%clk 0:00:08]}  Rf1 {[%clk 0:00:55]} 69. Re8+ {[%clk 0:00:08]}  Kh7 {[%clk 0:00:55]} 70. Rf8 {[%clk 0:00:08]}  Rg1+ {[%clk 0:00:55]} 71. Kf5 {[%clk 0:00:08]}  Rf1+ {[%clk 0:00:55]} 72. Ke5 {[%clk 0:00:09]}  Re1+ {[%clk 0:00:56]} 73. Kf6 {[%clk 0:00:09]}  Rf1+ {[%clk 0:00:56]} 74. Ke7 {[%clk 0:00:09]}  Kg6 {[%clk 0:00:39]} 75. Rg8+ {[%clk 0:00:08]}  Kh7 {[%clk 0:00:39]} 76. Rg7+ {[%clk 0:00:09]}  Kh8 {[%clk 0:00:40]} 77. Rxf7 {[%clk 0:00:09]}  Ra1 {[%clk 0:00:39]} 78. Rf5 {[%clk 0:00:08]}  Ra6 {[%clk 0:00:38]} 79. Kf7 {[%clk 0:00:08]}  Ra7+ {[%clk 0:00:35]} 80. Kg6 {[%clk 0:00:08]}  Ra6+ {[%clk 0:00:36]} 81. Kh5 {[%clk 0:00:08]}  Ra8 {[%clk 0:00:36]} 82. g6 {[%clk 0:00:09]}  Rb8 {[%clk 0:00:36]} 83. Ra5 {[%clk 0:00:03]}  Kg8 {[%clk 0:00:36]} 84. Rc5 {[%clk 0:00:04]}  Re8 {[%clk 0:00:35]} 85. Kg5 {[%clk 0:00:04]}  Rd8 {[%clk 0:00:36]} 86. Rb5 {[%clk 0:00:04]}  Rc8 {[%clk 0:00:36]} 87. Kf6 {[%clk 0:00:05]}  Rc6+ {[%clk 0:00:35]} 88. Kg5 {[%clk 0:00:05]}  Rc8 {[%clk 0:00:36]} 89. Re5 {[%clk 0:00:06]}  Rb8 {[%clk 0:00:33]} 90. Kf6 {[%clk 0:00:06]}  Rf8+ {[%clk 0:00:32]} 91. Kg5 {[%clk 0:00:06]}  Rb8 {[%clk 0:00:32]} 92. h7+ {[%clk 0:00:07]}  Kh8 {[%clk 0:00:20]} 93. Kh6 {[%clk 0:00:06]}  Rb7 {[%clk 0:00:19]} 94. Re8# {[%clk 0:00:06]} 1-0


[Site "https://www.chess.com"]

[Event "Titled Tuesday Blitz January 18 2022"]
[White "Concio, Michael Jr."]
[Black "Chernomordik, Pavel"]
[WhiteFideId "5217873"]
[BlackFideId "2804530"]
[WhiteElo "1896"]
[BlackElo "2249"]
[Result "1-0"]
[Round "08"]
[TimeControl "180+1"]
[Date "2022.01.18"]
[WhiteClock "0:00:12"]
[BlackClock "0:00:05"]

1. e4 {[%clk 0:03:00]}  g6 {[%clk 0:02:59]} 2. h4 {[%clk 0:02:58]}  d5 {[%clk 0:02:59]} 3. exd5 {[%clk 0:02:54]}  Nf6 {[%clk 0:02:58]} 4. Nc3 {[%clk 0:02:51]}  Bg7 {[%clk 0:02:55]} 5. Bc4 {[%clk 0:02:48]}  c6 {[%clk 0:02:54]} 6. dxc6 {[%clk 0:02:47]}  Nxc6 {[%clk 0:02:54]} 7. Nf3 {[%clk 0:02:48]}  Bg4 {[%clk 0:02:53]} 8. Be2 {[%clk 0:02:48]}  e5 {[%clk 0:02:50]} 9. d3 {[%clk 0:02:48]}  Qe7 {[%clk 0:02:46]} 10. Bg5 {[%clk 0:02:47]}  O-O-O {[%clk 0:02:46]} 11. Qd2 {[%clk 0:02:19]}  h6 {[%clk 0:02:45]} 12. Bxf6 {[%clk 0:02:16]}  Bxf6 {[%clk 0:02:45]} 13. O-O-O {[%clk 0:02:12]}  Bg7 {[%clk 0:02:39]} 14. Kb1 {[%clk 0:02:03]}  f5 {[%clk 0:02:35]} 15. Qe3 {[%clk 0:01:52]}  Kb8 {[%clk 0:02:27]} 16. Nd2 {[%clk 0:01:34]}  Bxe2 {[%clk 0:02:07]} 17. Nxe2 {[%clk 0:01:29]}  Rhe8 {[%clk 0:02:04]} 18. Nb3 {[%clk 0:01:24]}  Qf6 {[%clk 0:02:01]} 19. c3 {[%clk 0:01:14]}  Ne7 {[%clk 0:01:53]} 20. Rhe1 {[%clk 0:01:02]}  Qxh4 {[%clk 0:01:49]} 21. g3 {[%clk 0:00:44]}  Qf6 {[%clk 0:01:47]} 22. Qf3 {[%clk 0:00:42]}  Nd5 {[%clk 0:01:40]} 23. Nec1 {[%clk 0:00:41]}  Qc6 {[%clk 0:01:35]} 24. Qe2 {[%clk 0:00:34]}  Qb6 {[%clk 0:01:27]} 25. Qc2 {[%clk 0:00:30]}  a5 {[%clk 0:01:25]} 26. Re2 {[%clk 0:00:27]}  a4 {[%clk 0:01:23]} 27. Nd2 {[%clk 0:00:28]}  a3 {[%clk 0:01:22]} 28. Nc4 {[%clk 0:00:28]}  Qc5 {[%clk 0:01:19]} 29. Nxa3 {[%clk 0:00:26]}  Rc8 {[%clk 0:01:08]} 30. Nb3 {[%clk 0:00:23]}  Qa7 {[%clk 0:01:05]} 31. Nc4 {[%clk 0:00:21]}  b5 {[%clk 0:01:02]} 32. Nd6 {[%clk 0:00:20]}  Qb6 {[%clk 0:00:55]} 33. Nxe8 {[%clk 0:00:20]}  Rxe8 {[%clk 0:00:55]} 34. Rde1 {[%clk 0:00:20]}  Rc8 {[%clk 0:00:45]} 35. Qd2 {[%clk 0:00:20]}  g5 {[%clk 0:00:37]} 36. c4 {[%clk 0:00:19]}  bxc4 {[%clk 0:00:36]} 37. dxc4 {[%clk 0:00:20]}  Nb4 {[%clk 0:00:34]} 38. c5 {[%clk 0:00:20]}  Qb5 {[%clk 0:00:33]} 39. Qd6+ {[%clk 0:00:18]}  Rc7 {[%clk 0:00:32]} 40. Qb6+ {[%clk 0:00:14]}  Qxb6 {[%clk 0:00:31]} 41. cxb6 {[%clk 0:00:15]}  Rb7 {[%clk 0:00:31]} 42. Nc5 {[%clk 0:00:15]}  Re7 {[%clk 0:00:31]} 43. a3 {[%clk 0:00:14]}  Nd5 {[%clk 0:00:30]} 44. b7 {[%clk 0:00:14]}  e4 {[%clk 0:00:28]} 45. Rd1 {[%clk 0:00:13]}  Re5 {[%clk 0:00:07]} 46. Nd7+ {[%clk 0:00:11]}  Kc7 {[%clk 0:00:07]} 47. Nxe5 {[%clk 0:00:12]}  Kxb7 {[%clk 0:00:05]} 48. Rxd5 {[%clk 0:00:12]} 1-0


[Site "https://www.chess.com"]

[Event "Titled Tuesday Blitz January 18 2022"]
[White "FGHSMN"]
[Black "Jocev, Milan"]
[BlackFideId "900680"]
[WhiteElo "2745"]
[BlackElo "2322"]
[Result "0-1"]
[Round "08"]
[TimeControl "180+1"]
[Date "2022.01.18"]
[WhiteClock "0:00:11"]
[BlackClock "0:00:15"]

1. e4 {[%clk 0:03:00]}  c6 {[%clk 0:02:58]} 2. d4 {[%clk 0:03:00]}  d5 {[%clk 0:02:58]} 3. Nc3 {[%clk 0:03:00]}  dxe4 {[%clk 0:02:56]} 4. Nxe4 {[%clk 0:03:01]}  Bf5 {[%clk 0:02:56]} 5. Ng3 {[%clk 0:03:01]}  Bg6 {[%clk 0:02:56]} 6. h4 {[%clk 0:03:01]}  h6 {[%clk 0:02:56]} 7. N1e2 {[%clk 0:03:01]}  e5 {[%clk 0:02:47]} 8. Nf4 {[%clk 0:03:02]}  exf4 {[%clk 0:02:47]} 9. Bxf4 {[%clk 0:03:01]}  Bd6 {[%clk 0:02:46]} 10. Qe2+ {[%clk 0:02:50]}  Ne7 {[%clk 0:02:45]} 11. Bxd6 {[%clk 0:02:48]}  Qxd6 {[%clk 0:02:46]} 12. h5 {[%clk 0:02:48]}  Bh7 {[%clk 0:02:45]} 13. O-O-O {[%clk 0:02:47]}  O-O {[%clk 0:02:41]} 14. Qg4 {[%clk 0:02:46]}  Nd5 {[%clk 0:02:38]} 15. Kb1 {[%clk 0:02:36]}  Nb4 {[%clk 0:02:33]} 16. Rd2 {[%clk 0:02:26]}  Qe6 {[%clk 0:02:23]} 17. Qxe6 {[%clk 0:02:22]}  fxe6 {[%clk 0:02:24]} 18. Bc4 {[%clk 0:02:23]}  Nd5 {[%clk 0:02:24]} 19. Re1 {[%clk 0:02:22]}  Rf6 {[%clk 0:02:16]} 20. Ne4 {[%clk 0:01:59]}  Bxe4 {[%clk 0:02:14]} 21. Rxe4 {[%clk 0:02:00]}  Nd7 {[%clk 0:02:12]} 22. g3 {[%clk 0:01:57]}  Raf8 {[%clk 0:01:34]} 23. f4 {[%clk 0:01:55]}  N7b6 {[%clk 0:01:31]} 24. Bf1 {[%clk 0:01:46]}  g5 {[%clk 0:01:28]} 25. hxg6 {[%clk 0:01:25]}  Rxg6 {[%clk 0:01:27]} 26. Rg2 {[%clk 0:01:07]}  Rf7 {[%clk 0:00:44]} 27. c4 {[%clk 0:00:58]}  Nf6 {[%clk 0:00:19]} 28. Rxe6 {[%clk 0:00:55]}  Kg7 {[%clk 0:00:18]} 29. Bd3 {[%clk 0:00:54]}  Rg4 {[%clk 0:00:13]} 30. Bf5 {[%clk 0:00:33]}  Nxc4 {[%clk 0:00:13]} 31. Bxg4 {[%clk 0:00:28]}  Nxg4 {[%clk 0:00:12]} 32. Rge2 {[%clk 0:00:29]}  Nf6 {[%clk 0:00:12]} 33. b3 {[%clk 0:00:27]}  Nb6 {[%clk 0:00:12]} 34. Kb2 {[%clk 0:00:23]}  Nbd5 {[%clk 0:00:10]} 35. Rd6 {[%clk 0:00:22]}  Rf8 {[%clk 0:00:09]} 36. Rde6 {[%clk 0:00:20]}  Kf7 {[%clk 0:00:07]} 37. f5 {[%clk 0:00:20]}  Rg8 {[%clk 0:00:07]} 38. Rh2 {[%clk 0:00:19]}  h5 {[%clk 0:00:07]} 39. Rh3 {[%clk 0:00:19]}  Rg4 {[%clk 0:00:08]} 40. Re2 {[%clk 0:00:15]}  Rxd4 {[%clk 0:00:07]} 41. Rhh2 {[%clk 0:00:14]}  Rg4 {[%clk 0:00:08]} 42. Rhg2 {[%clk 0:00:14]}  a5 {[%clk 0:00:08]} 43. a3 {[%clk 0:00:14]}  a4 {[%clk 0:00:08]} 44. bxa4 {[%clk 0:00:14]}  Rxa4 {[%clk 0:00:07]} 45. Kb3 {[%clk 0:00:15]}  Rg4 {[%clk 0:00:07]} 46. Rb2 {[%clk 0:00:15]}  b5 {[%clk 0:00:08]} 47. Rgc2 {[%clk 0:00:14]}  Rxg3+ {[%clk 0:00:05]} 48. Ka2 {[%clk 0:00:14]}  Ne7 {[%clk 0:00:04]} 49. a4 {[%clk 0:00:13]}  bxa4 {[%clk 0:00:04]} 50. Rb4 {[%clk 0:00:14]}  Nfd5 {[%clk 0:00:04]} 51. Rd4 {[%clk 0:00:13]}  Nc3+ {[%clk 0:00:04]} 52. Kb2 {[%clk 0:00:13]}  a3+ {[%clk 0:00:04]} 53. Kc1 {[%clk 0:00:09]}  Rg1+ {[%clk 0:00:04]} 54. Kd2 {[%clk 0:00:09]}  a2 {[%clk 0:00:04]} 55. Rxa2 {[%clk 0:00:07]}  Nxa2 {[%clk 0:00:05]} 56. Rh4 {[%clk 0:00:07]}  Rg5 {[%clk 0:00:04]} 57. Ra4 {[%clk 0:00:06]}  Nxf5 {[%clk 0:00:04]} 58. Ra7+ {[%clk 0:00:05]}  Kf6 {[%clk 0:00:05]} 59. Kd3 {[%clk 0:00:06]}  Rg2 {[%clk 0:00:05]} 60. Ke4 {[%clk 0:00:06]}  Rg4+ {[%clk 0:00:05]} 61. Kf3 {[%clk 0:00:07]}  Nc3 {[%clk 0:00:06]} 62. Rc7 {[%clk 0:00:06]}  Ke5 {[%clk 0:00:06]} 63. Rxc6 {[%clk 0:00:06]}  Nd5 {[%clk 0:00:07]} 64. Rc8 {[%clk 0:00:05]}  Rf4+ {[%clk 0:00:07]} 65. Ke2 {[%clk 0:00:05]}  h4 {[%clk 0:00:08]} 66. Re8+ {[%clk 0:00:05]}  Nde7 {[%clk 0:00:09]} 67. Rh8 {[%clk 0:00:05]}  Kf6 {[%clk 0:00:09]} 68. Rf8+ {[%clk 0:00:05]}  Kg5 {[%clk 0:00:10]} 69. Ra8 {[%clk 0:00:06]}  Ng6 {[%clk 0:00:10]} 70. Rh8 {[%clk 0:00:06]}  Rg4 {[%clk 0:00:10]} 71. Rg8 {[%clk 0:00:06]}  Rf4 {[%clk 0:00:10]} 72. Kd3 {[%clk 0:00:06]}  Kg4 {[%clk 0:00:10]} 73. Ke2 {[%clk 0:00:07]}  Ne7 {[%clk 0:00:10]} 74. Ra8 {[%clk 0:00:06]}  h3 {[%clk 0:00:10]} 75. Ra1 {[%clk 0:00:05]}  h2 {[%clk 0:00:11]} 76. Rh1 {[%clk 0:00:05]}  Kg3 {[%clk 0:00:11]} 77. Ra1 {[%clk 0:00:06]}  Kg2 {[%clk 0:00:11]} 78. Ke3 {[%clk 0:00:07]}  Nf5+ {[%clk 0:00:11]} 79. Kd3 {[%clk 0:00:06]}  h1=Q {[%clk 0:00:12]} 80. Rxh1 {[%clk 0:00:06]}  Kxh1 {[%clk 0:00:13]} 81. Kc3 {[%clk 0:00:06]}  Kg2 {[%clk 0:00:14]} 82. Kd3 {[%clk 0:00:07]}  Kf3 {[%clk 0:00:15]} 83. Kc3 {[%clk 0:00:07]}  Ke4 {[%clk 0:00:15]} 84. Kc4 {[%clk 0:00:07]}  Ke5+ {[%clk 0:00:15]} 85. Kc5 {[%clk 0:00:08]}  Nge7 {[%clk 0:00:15]} 86. Kb6 {[%clk 0:00:09]}  Kd6 {[%clk 0:00:16]} 87. Kb7 {[%clk 0:00:08]}  Rb4+ {[%clk 0:00:15]} 88. Ka6 {[%clk 0:00:09]}  Kc7 {[%clk 0:00:14]} 89. Ka5 {[%clk 0:00:10]}  Nc6+ {[%clk 0:00:14]} 90. Ka6 {[%clk 0:00:11]}  Rb6# {[%clk 0:00:15]} 0-1


[Site "https://www.chess.com"]

[Event "Titled Tuesday Blitz January 18 2022"]
[White "Hjartarson, Johann"]
[Black "Shipov, Sergei"]
[WhiteFideId "2300044"]
[BlackFideId "4113624"]
[WhiteElo "2484"]
[BlackElo "2788"]
[Result "1-0"]
[Round "08"]
[TimeControl "180+1"]
[Date "2022.01.18"]
[WhiteClock "0:00:13"]
[BlackClock "0:00:35"]

1. c4 {[%clk 0:03:00]}  Nf6 {[%clk 0:02:59]} 2. Nc3 {[%clk 0:02:59]}  c5 {[%clk 0:02:59]} 3. g3 {[%clk 0:02:59]}  e6 {[%clk 0:02:59]} 4. Nf3 {[%clk 0:02:58]}  b6 {[%clk 0:02:59]} 5. Bg2 {[%clk 0:02:58]}  Bb7 {[%clk 0:03:00]} 6. O-O {[%clk 0:02:58]}  Be7 {[%clk 0:03:00]} 7. Re1 {[%clk 0:02:58]}  d6 {[%clk 0:02:59]} 8. e4 {[%clk 0:02:57]}  a6 {[%clk 0:02:59]} 9. d4 {[%clk 0:02:57]}  cxd4 {[%clk 0:02:59]} 10. Nxd4 {[%clk 0:02:57]}  Qc7 {[%clk 0:03:00]} 11. Be3 {[%clk 0:02:52]}  O-O {[%clk 0:02:56]} 12. Rc1 {[%clk 0:02:52]}  Re8 {[%clk 0:02:41]} 13. f4 {[%clk 0:02:46]}  Nbd7 {[%clk 0:02:40]} 14. g4 {[%clk 0:02:44]}  g6 {[%clk 0:02:33]} 15. g5 {[%clk 0:02:43]}  Nh5 {[%clk 0:02:33]} 16. f5 {[%clk 0:02:24]}  Bf8 {[%clk 0:02:19]} 17. fxe6 {[%clk 0:01:57]}  fxe6 {[%clk 0:02:18]} 18. b3 {[%clk 0:01:53]}  Ne5 {[%clk 0:02:12]} 19. Rf1 {[%clk 0:01:49]}  Rad8 {[%clk 0:02:09]} 20. Qe2 {[%clk 0:01:46]}  Qe7 {[%clk 0:01:59]} 21. Rf2 {[%clk 0:01:38]}  Bg7 {[%clk 0:01:58]} 22. Rcf1 {[%clk 0:01:35]}  Rc8 {[%clk 0:01:59]} 23. Bh3 {[%clk 0:01:34]}  Qd7 {[%clk 0:01:52]} 24. Nd5 {[%clk 0:01:33]}  Rc6 {[%clk 0:01:17]} 25. Bg4 {[%clk 0:00:59]}  Kh8 {[%clk 0:01:05]} 26. Nxc6 {[%clk 0:00:52]}  Qxc6 {[%clk 0:01:05]} 27. Bxh5 {[%clk 0:00:49]}  exd5 {[%clk 0:00:59]} 28. cxd5 {[%clk 0:00:38]}  Qd7 {[%clk 0:00:58]} 29. Bf3 {[%clk 0:00:37]}  Bc8 {[%clk 0:00:50]} 30. Bg2 {[%clk 0:00:35]}  Qg4 {[%clk 0:00:45]} 31. h3 {[%clk 0:00:26]}  Qh4 {[%clk 0:00:44]} 32. Rf4 {[%clk 0:00:18]}  Qg3 {[%clk 0:00:44]} 33. Qf2 {[%clk 0:00:18]}  Qxf2+ {[%clk 0:00:44]} 34. R4xf2 {[%clk 0:00:18]}  b5 {[%clk 0:00:45]} 35. Kh1 {[%clk 0:00:16]}  Kg8 {[%clk 0:00:44]} 36. Bd4 {[%clk 0:00:16]}  Nd3 {[%clk 0:00:42]} 37. Rd2 {[%clk 0:00:15]}  Bxd4 {[%clk 0:00:42]} 38. Rxd3 {[%clk 0:00:15]}  Be5 {[%clk 0:00:42]} 39. Rc1 {[%clk 0:00:15]}  Bf4 {[%clk 0:00:40]} 40. Rc6 {[%clk 0:00:14]}  Bd7 {[%clk 0:00:38]} 41. Rc7 {[%clk 0:00:14]}  Rd8 {[%clk 0:00:36]} 42. h4 {[%clk 0:00:14]}  Kg7 {[%clk 0:00:35]} 43. Bh3 {[%clk 0:00:13]} 1-0


[Site "https://www.chess.com"]